fUSD/lending_fUSD_20250117
["ID","MTS","AMOUNT","RATE_DAILY","PERIOD"]
[349255423,1737077454027,-500.0,0.00027397,3]
[349255424,1737077454036,-542.11209052,0.00027397,3]
[349255425,1737077454045,-2320.4,0.00027397,3]
[349255426,1737077454054,-2320.4,0.00027397,3]
[349255427,1737077454063,-354.78217962,0.00027397,3]
[349255428,1737077454073,-2320.4,0.00027397,3]
[349255429,1737077454082,-2320.4,0.00027397,3]
[349255430,1737077454090,-1087.59,0.00027397,3]
[349255431,1737077454099,-2320.4,0.00027397,3]
[349255432,1737077454108,-1087.59,0.00027397,3]
[349255433,1737077454118,-1087.59,0.00027397,3]
[349255434,1737077454126,-1087.59,0.00027397,3]
[349255435,1737077454135,-500.0,0.00027397,3]
[349255436,1737077454146,-1087.59,0.00027397,3]
[349255437,1737077454156,-500.0,0.00027397,3]
[349255438,1737077454166,-1087.59,0.00027397,3]
[349255439,1737077454175,-2320.4,0.00027397,3]
[349255440,1737077454185,-612.33952226,0.00027397,3]
[349255441,1737077454194,-1087.59,0.00027397,3]
[349255442,1737077454203,-1087.59,0.00027397,3]
[349255443,1737077454212,-7882.15,0.00027397,3]
[349255444,1737077454222,-1087.59,0.00027397,3]
[349255445,1737077454231,-2320.4,0.00027397,3]
[349255446,1737077454239,-1087.59,0.00027397,3]
[349255447,1737077454249,-1087.59,0.00027397,3]
[349255448,1737077454258,-1087.59,0.00027397,3]
[349255449,1737077454267,-7882.15,0.00027397,3]
[349255450,1737077454276,-1087.59,0.00027397,3]
[349255451,1737077454285,-1087.59,0.00027397,3]
[349255452,1737077454294,-7882.15,0.00027397,3]
[349255453,1737077454303,-1087.59,0.00027397,3]
[349255454,1737077454311,-2320.4,0.00027397,3]
[349255455,1737077454320,-1087.59,0.00027397,3]
[349255456,1737077454329,-1087.59,0.00027397,3]
[349255457,1737077454339,-1087.59,0.00027397,3]
[349255458,1737077454347,-1087.59,0.00027397,3]
[349255459,1737077454357,-7882.15,0.00027397,3]
[349255460,1737077454367,-1087.59,0.00027397,3]
[349255461,1737077454378,-2320.42908566,0.00027397,3]
[349255462,1737077454387,-500.0,0.00027397,3]
[349255463,1737077454396,-1087.59,0.00027397,3]
[349255464,1737077454405,-500.0,0.00027397,3]
[349255465,1737077454415,-1087.59,0.00027397,3]
[349255466,1737077454423,-500.0,0.00027397,3]
[349255467,1737077454433,-7882.15,0.00027397,3]
[349255468,1737077454442,-1087.59,0.00027397,3]
[349255469,1737077454451,-500.0,0.00027397,3]
[349255470,1737077454460,-1087.75503852,0.00027397,3]
[349255471,1737077454470,-7882.15,0.00027397,3]
[349255472,1737077454479,-500.0,0.00027397,3]
[349255473,1737077454488,-385.30167277,0.00027397,3]
[349255474,1737077454498,-7882.15,0.00027397,3]
[349255475,1737077454507,-7882.15,0.00027397,3]
[349255476,1737077454517,-9012.22,0.00027397,3]
[349255477,1737077454526,-151.0,0.00027397,7]
[349255478,1737077454536,-7882.15,0.00027397,3]
[349255479,1737077454545,-151.0,0.00027397,7]
[349255480,1737077454554,-500.0,0.00027397,3]
[349255481,1737077454563,-500.0,0.00027397,3]
[349255482,1737077454572,-9012.22,0.00027397,3]
[349255483,1737077454581,-7882.15,0.00027397,3]
[349255484,1737077454591,-503.55237277,0.00027397,3]
[349255485,1737077454600,-7882.15,0.00027397,3]
[349255486,1737077454609,-9012.22,0.00027397,3]
[349255487,1737077454619,-7882.15,0.00027397,3]
[349255488,1737077454628,-9012.22,0.00027397,3]
[349255489,1737077454637,-9012.22,0.00027397,3]
[349255490,1737077454646,-7882.15,0.00027397,3]
[349255491,1737077454656,-9012.22,0.00027397,3]
[349255492,1737077454665,-500.0,0.00027397,3]
[349255493,1737077454674,-7882.15,0.00027397,3]
[349255494,1737077454683,-500.0,0.00027397,3]
[349255495,1737077454692,-500.0,0.00027397,3]
[349255496,1737077454702,-500.0,0.00027397,3]
[349255497,1737077454711,-600.04,0.00027397,3]
[349255498,1737077454720,-500.0,0.00027397,3]
[349255499,1737077454730,-7882.15,0.00027397,3]
[349255500,1737077454739,-9012.22,0.00027397,3]
[349255501,1737077454749,-500.0,0.00027397,3]
[349255502,1737077454758,-500.0,0.00027397,3]
[349255503,1737077454768,-500.0,0.00027397,3]
[349255504,1737077454777,-500.0,0.00027397,3]
[349255505,1737077454786,-389.44047661,0.00027397,3]
[349255506,1737077454795,-500.0,0.00027397,3]
[349255507,1737077454804,-600.04,0.00027397,3]
[349255508,1737077454814,-500.0,0.00027397,3]
[349255509,1737077454823,-9012.22,0.00027397,3]
[349255510,1737077454833,-7882.15,0.00027397,3]
[349255511,1737077454842,-500.0,0.00027397,3]
[349255512,1737077454851,-208.20759137,0.00027397,3]
[349255513,1737077454861,-600.04,0.00027397,3]
[349255514,1737077454870,-9012.22,0.00027397,3]
[349255515,1737077454880,-7882.15,0.00027397,3]
[349255516,1737077454889,-600.04,0.00027397,3]
[349255517,1737077454898,-7882.15,0.00027397,3]
[349255518,1737077454909,-9012.22,0.00027397,3]
[349255519,1737077454920,-600.04,0.00027397,3]
[349255520,1737077454930,-7882.15,0.00027397,3]
[349255521,1737077454940,-500.0,0.00027397,3]
[349255522,1737077454949,-9012.22,0.00027397,3]
[349255523,1737077454961,-600.04,0.00027397,3]
[349255524,1737077454970,-7882.15,0.00027397,3]
[349255525,1737077454980,-1262.56,0.00027397,3]
[349255526,1737077454990,-600.04,0.00027397,3]
[349255527,1737077455000,-9012.22,0.00027397,3]
[349255528,1737077455010,-7882.15,0.00027397,3]
[349255529,1737077455019,-1262.56,0.00027397,3]
[349255530,1737077455029,-500.0,0.00027397,3]
[349255531,1737077455038,-1262.56,0.00027397,3]
[349255532,1737077455047,-7882.15,0.00027397,3]
[349255533,1737077455056,-9012.22,0.00027397,3]
[349255534,1737077455066,-1262.56,0.00027397,3]
[349255535,1737077455076,-600.04,0.00027397,3]
[349255536,1737077455086,-500.0,0.00027397,3]
[349255537,1737077455096,-1262.56,0.00027397,3]
[349255538,1737077455106,-500.0,0.00027397,3]
[349255539,1737077455115,-1262.56,0.00027397,3]
[349255540,1737077455125,-9012.22,0.00027397,3]
[349255541,1737077455134,-7882.15,0.00027397,3]
[349255542,1737077455144,-500.0,0.00027397,3]
[349255543,1737077455154,-1262.56,0.00027397,3]
[349255544,1737077455163,-600.04,0.00027397,3]
[349255545,1737077455172,-500.0,0.00027397,3]
[349255546,1737077455182,-1262.56,0.00027397,3]
[349255547,1737077455192,-9012.22,0.00027397,3]
[349255548,1737077455202,-500.0,0.00027397,3]
[349255549,1737077455212,-7882.1891546,0.00027397,3]
[349255550,1737077455221,-1262.56,0.00027397,3]
[349255551,1737077455231,-600.04,0.00027397,3]
[349255552,1737077455241,-500.0,0.00027397,3]
[349255553,1737077455251,-1262.56,0.00027397,3]
[349255554,1737077455260,-9012.22,0.00027397,3]
[349255555,1737077455269,-1262.56,0.00027397,3]
[349255556,1737077455280,-500.0,0.00027397,3]
[349255557,1737077455289,-1262.56,0.00027397,3]
[349255558,1737077455299,-600.04,0.00027397,3]
[349255559,1737077455309,-500.0,0.00027397,3]
[349255560,1737077455319,-9012.22,0.00027397,3]
[349255561,1737077455328,-500.0,0.00027397,3]
[349255562,1737077455338,-500.0,0.00027397,3]
[349255563,1737077455348,-1262.56,0.00027397,3]
[349255564,1737077455357,-500.0,0.00027397,3]
[349255565,1737077455367,-9012.22,0.00027397,3]
[349255566,1737077455377,-600.04,0.00027397,3]
[349255567,1737077455386,-460.18788059,0.00027397,3]
[349255568,1737077455396,-1262.56,0.00027397,3]
[349255569,1737077455405,-1262.56,0.00027397,3]
[349255570,1737077455414,-9012.22,0.00027397,3]
[349255571,1737077455424,-600.04,0.00027397,3]
[349255572,1737077455434,-1262.56,0.00027397,3]
[349255573,1737077455443,-1262.56,0.00027397,3]
[349255574,1737077455453,-9012.22,0.00027397,3]
[349255575,1737077455463,-600.04,0.00027397,3]
[349255576,1737077455473,-1262.56,0.00027397,3]
[349255577,1737077455483,-1262.56,0.00027397,3]
[349255578,1737077455493,-1262.56,0.00027397,3]
[349255579,1737077455503,-9012.22,0.00027397,3]
[349255580,1737077455513,-600.04,0.00027397,3]
[349255581,1737077455522,-500.0,0.00027397,3]
[349255582,1737077455532,-1262.56,0.00027397,3]
[349255583,1737077455541,-500.0,0.00027397,3]
[349255584,1737077455551,-1262.56,0.00027397,3]
[349255585,1737077455560,-1262.56,0.00027397,3]
[349255586,1737077455570,-1262.72140125,0.00027397,3]
[349255587,1737077455580,-9012.22,0.00027397,3]
[349255588,1737077455590,-500.0,0.00027397,3]
[349255589,1737077455599,-600.04,0.00027397,3]
[349255590,1737077455610,-9012.22,0.00027397,3]
[349255591,1737077455619,-600.04,0.00027397,3]
[349255592,1737077455629,-596.01,0.00027397,3]
[349255593,1737077455639,-9012.40369813,0.00027397,3]
[349255594,1737077455648,-596.01,0.00027397,3]
[349255595,1737077455658,-596.01,0.00027397,3]
[349255596,1737077455667,-500.0,0.00027397,3]
[349255597,1737077455677,-596.01,0.00027397,3]
[349255598,1737077455687,-500.0,0.00027397,3]
[349255599,1737077455697,-600.04,0.00027397,3]
[349255600,1737077455708,-596.01,0.00027397,3]
[349255601,1737077455717,-500.0,0.00027397,3]
[349255602,1737077455726,-500.0,0.00027397,3]
[349255603,1737077455735,-596.01,0.00027397,3]
[349255604,1737077455744,-596.01,0.00027397,3]
[349255605,1737077455754,-500.0,0.00027397,3]
[349255606,1737077455764,-596.01,0.00027397,3]
[349255607,1737077455773,-500.0,0.00027397,3]
[349255608,1737077455783,-500.0,0.00027397,3]
[349255609,1737077455793,-596.01,0.00027397,3]
[349255610,1737077455802,-600.04,0.00027397,3]
[349255611,1737077455811,-500.0,0.00027397,3]
[349255612,1737077455820,-596.01,0.00027397,3]
[349255613,1737077455829,-500.0,0.00027397,3]
[349255614,1737077455839,-596.01,0.00027397,3]
[349255615,1737077455848,-500.0,0.00027397,3]
[349255616,1737077455857,-600.04,0.00027397,3]
[349255617,1737077455867,-596.01,0.00027397,3]
[349255618,1737077455877,-500.0,0.00027397,3]
[349255619,1737077455886,-596.01,0.00027397,3]
[349255620,1737077455895,-500.0,0.00027397,3]
[349255621,1737077455905,-596.01,0.00027397,3]
[349255622,1737077455917,-596.01,0.00027397,3]
[349255623,1737077455927,-596.01,0.00027397,3]
[349255624,1737077455937,-596.01,0.00027397,3]
[349255625,1737077455947,-600.04,0.00027397,3]
[349255626,1737077455958,-596.01,0.00027397,3]
[349255627,1737077455967,-596.01,0.00027397,3]
[349255628,1737077455976,-596.01,0.00027397,3]
[349255629,1737077455986,-596.01,0.00027397,3]
[349255630,1737077455996,-600.04,0.00027397,3]
[349255631,1737077456006,-596.01,0.00027397,3]
[349255632,1737077456017,-596.01,0.00027397,3]
[349255633,1737077456027,-596.10058377,0.00027397,3]
[349255634,1737077456037,-600.04,0.00027397,3]
[349255635,1737077456046,-513.56589361,0.00027397,3]
[349255636,1737077456055,-2185.68,0.00027397,3]
[349255637,1737077456065,-600.12,0.00027397,3]
[349255638,1737077456074,-2185.68,0.00027397,3]
[349255639,1737077456084,-2185.68,0.00027397,3]
[349255640,1737077456093,-500.0,0.00027397,3]
[349255641,1737077456103,-2185.68,0.00027397,3]
[349255642,1737077456113,-500.0,0.00027397,3]
[349255643,1737077456122,-2185.68,0.00027397,3]
[349255644,1737077456132,-500.0,0.00027397,3]
[349255645,1737077456142,-2185.68,0.00027397,3]
[349255646,1737077456151,-2185.68,0.00027397,3]
[349255647,1737077456161,-2185.68,0.00027397,3]
[349255648,1737077456171,-2185.68,0.00027397,3]
[349255649,1737077456180,-2185.68,0.00027397,3]
[349255650,1737077456190,-500.0,0.00027397,3]
[349255651,1737077456200,-2185.68,0.00027397,3]
[349255652,1737077456209,-1644.85792088,0.00027397,3]
[349255653,1737077456313,-364.3703331,0.00027397,3]
[349255674,1737078224193,153.63,0.00010137,2]
[349255678,1737078429134,-1291.05534493,0.00023225,2]
[349255679,1737078452110,-3222.72004079,0.00023225,2]
[349255680,1737078452135,-860.9,0.00023325,2]
[349255681,1737078452160,-7303.89583539,0.00023704,2]
[349255682,1737078452184,-150.0,0.00024329,2]
[349255683,1737078452209,-150.0,0.00024362,2]
[349255684,1737078452241,-150.0,0.00024367,2]
[349255685,1737078452268,-150.0,0.00024395,2]
[349255686,1737078452294,-150.0,0.00024544,2]
[349255687,1737078452322,-150.0,0.00024701,2]
[349255688,1737078452347,-150.0,0.00024758,2]
[349255689,1737078452372,-150.0,0.00024758,2]
[349255690,1737078452397,-150.0,0.00024783,2]
[349255691,1737078452423,-150.0,0.00024854,2]
[349255692,1737078452449,-150.0,0.00024917,2]
[349255693,1737078452473,-500.0,0.00024932,2]
[349255694,1737078452498,-500.0,0.00024932,2]
[349255695,1737078452522,-500.0,0.00024932,2]
[349255696,1737078452547,-300.0,0.00024972,2]
[349255697,1737078452573,-150.0,0.00024973,2]
[349255698,1737078452600,-150.0,0.00024978,2]
[349255699,1737078452623,-1689.27,0.00025165,2]
[349255700,1737078452649,-334.97,0.00025194,120]
[349255701,1737078452673,-700.91,0.00025238,2]
[349255702,1737078452696,-250.0,0.00025337,2]
[349255703,1737078452723,-150.0,0.00025377,2]
[349255704,1737078452751,-23900.0,0.00025426,2]
[349255705,1737078452776,-150.0,0.00025444,2]
[349255706,1737078452802,-150.0,0.0002546,2]
[349255707,1737078452829,-150.0,0.00025488,2]
[349255708,1737078452852,-150.0,0.00025488,2]
[349255709,1737078452877,-150.0,0.00025527,2]
[349255710,1737078452901,-250.0,0.00025531,2]
[349255711,1737078452927,-150.0,0.00025568,2]
[349255712,1737078452952,-150.0,0.00025583,2]
[349255713,1737078452980,-860.9,0.00025589,2]
[349255714,1737078453005,-150.0,0.00025609,2]
[349255715,1737078453032,-150.0,0.00025655,2]
[349255716,1737078453059,-150.0,0.00025748,2]
[349255717,1737078453083,-381.96,0.00025765,2]
[349255718,1737078453110,-150.0,0.0002579,2]
[349255719,1737078453138,-150.0,0.00025801,2]
[349255720,1737078453162,-178.47,0.00025825,2]
[349255721,1737078453188,-1913.60496373,0.00025911,11]
[349255735,1737078611038,160.59,0.00012329,2]
[349255736,1737078611246,160.59,0.00019863,2]
[349255768,1737078632279,-243.0,0.00023704,120]
[349255769,1737078632290,-182.21451158,0.00023704,60]
[349255770,1737078632300,-639.17368889,0.00023704,120]
[349255771,1737078632309,-1004.66,0.00025796,2]
[349255772,1737078632320,-213.11095453,0.00025811,2]
[349255773,1737078632330,-671.64069715,0.00025811,2]
[349255774,1737078632339,-1000.0,0.00025818,2]
[349255775,1737078632349,-309.65,0.00025845,2]
[349255776,1737078632360,-344.04014785,0.00025911,11]
[349255777,1737078632526,-2794.97588842,0.00025911,11]
[349255778,1737078632537,-178.969,0.00025911,11]
[349255779,1737078632547,-500.0,0.00025911,2]
[349255780,1737078632557,-12510.5657805,0.00025973,2]
[349255781,1737078632567,-3751.0934937,0.00025973,2]
[349255782,1737078632577,-150.0,0.00025991,2]
[349255783,1737078632633,-300.0,0.00025998,2]
[349255784,1737078632644,-3315.49036792,0.00025999,2]
[349255785,1737078632655,-16870.0171726,0.00025999,2]
[349255786,1737078632666,-5810.60033948,0.00025999,2]
[349255787,1737078632675,-1500.0,0.00026055,2]
[349255788,1737078632684,-150.0,0.00026076,2]
[349255789,1737078632693,-2952.04,0.00026076,2]
[349255790,1737078632702,-500.0,0.000261,30]
[349255791,1737078632711,-709.26683445,0.000261,30]
[349255792,1737078632721,-250.0,0.00026102,2]
[349255793,1737078632730,-150.0,0.0002613,2]
[349255794,1737078632740,-150.0,0.00026138,2]
[349255795,1737078632749,-686.7,0.00026161,2]
[349255796,1737078632758,-2000.0,0.00026226,120]
[349255797,1737078632770,-150.0,0.00026229,2]
[349255798,1737078632779,-150.0,0.00026308,2]
[349255799,1737078632788,-150.0,0.00026314,2]
[349255800,1737078632798,-2848.0,0.00026317,2]
[349255801,1737078632808,-200.0,0.00026324,2]
[349255802,1737078632817,-150.0,0.00026324,2]
[349255803,1737078632827,-206.58,0.00026353,2]
[349255804,1737078632836,-150.0,0.00026373,2]
[349255805,1737078632845,-150.0,0.00026436,2]
[349255806,1737078632854,-150.0,0.00026481,2]
[349255807,1737078632863,-150.0,0.00026495,2]
[349255808,1737078632872,-150.0,0.00026521,2]
[349255809,1737078632881,-150.0,0.00026568,2]
[349255810,1737078632891,-150.0,0.00026633,2]
[349255811,1737078632900,-1000.0,0.00026666,2]
[349255812,1737078632910,-150.0,0.0002673,2]
[349255813,1737078632918,-150.0,0.00026758,2]
[349255814,1737078632928,-1000.0,0.00026758,2]
[349255815,1737078632937,-895.90069564,0.00026776,2]
[349255816,1737078632946,-1000.0,0.0002678,2]
[349255817,1737078632955,-1000.0,0.00026781,2]
[349255818,1737078632964,-1000.0,0.00026789,2]
[349255819,1737078632974,-150.0,0.00026793,2]
[349255820,1737078632983,-150.0,0.00026794,2]
[349255821,1737078632992,-1000.0,0.00026814,2]
[349255822,1737078633002,-150.0,0.00026831,2]
[349255823,1737078633011,-1000.0,0.00026836,2]
[349255824,1737078633024,-1000.0,0.00026846,2]
[349255825,1737078633033,-1000.0,0.00026849,3]
[349255826,1737078633043,-1000.0,0.00026849,3]
[349255827,1737078633052,-1048.0,0.00026849,3]
[349255828,1737078633062,-150.0,0.00026853,2]
[349255829,1737078633071,-150.0,0.00026858,2]
[349255830,1737078633081,-150.0,0.00026889,2]
[349255831,1737078633091,-1000.0,0.00026893,2]
[349255832,1737078633101,-150.0,0.00026893,2]
[349255833,1737078633110,-1000.0,0.00026903,2]
[349255834,1737078633120,-150.0,0.00026908,2]
[349255835,1737078633129,-150.0,0.00026917,2]
[349255836,1737078633139,-150.0,0.00026927,2]
[349255837,1737078633148,-1000.0,0.00026942,2]
[349255838,1737078633157,-1000.0,0.00026951,2]
[349255839,1737078633167,-1000.0,0.00026951,2]
[349255840,1737078633176,-216.69002472,0.00026955,2]
[349255841,1737078633186,-150.0,0.00026967,2]
[349255842,1737078633195,-150.0,0.00026969,2]
[349255843,1737078633204,-150.0,0.00026978,2]
[349255844,1737078633213,-1000.0,0.0002698,2]
[349255845,1737078633222,-150.0,0.00026986,2]
[349255846,1737078633231,-188.0,0.00027,3]
[349255847,1737078633240,-550.0,0.00027,2]
[349255848,1737078633250,-5000.0,0.00027,30]
[349255849,1737078633259,-5000.0,0.00027,30]
[349255850,1737078633272,-200.0,0.00027,60]
[349255851,1737078633283,-150.0,0.00027009,2]
[349255852,1737078633292,-150.0,0.0002701,2]
[349255853,1737078633301,-150.0,0.00027013,2]
[349255854,1737078633311,-1000.0,0.00027014,2]
[349255855,1737078633321,-1000.0,0.0002702,2]
[349255856,1737078633330,-1000.0,0.00027024,2]
[349255857,1737078633339,-150.0,0.00027034,2]
[349255858,1737078633349,-150.0,0.00027039,2]
[349255859,1737078633359,-150.0,0.00027041,2]
[349255860,1737078633369,-150.0,0.00027052,2]
[349255861,1737078633378,-153.12000726,0.00027062,2]
[349255862,1737078633387,-150.0,0.00027064,2]
[349255863,1737078633397,-348.74873569,0.00027065,2]
[349255864,1737078633406,-150.0,0.00027067,2]
[349255865,1737078633415,-1000.0,0.00027085,2]
[349255866,1737078633424,-150.0,0.00027089,2]
[349255867,1737078633434,-1000.0,0.00027101,2]
[349255868,1737078633443,-150.0,0.00027105,2]
[349255869,1737078633452,-1000.0,0.00027107,2]
[349255870,1737078633461,-1000.0,0.0002711,2]
[349255871,1737078633470,-150.0,0.00027115,2]
[349255872,1737078633479,-3000.0,0.0002712,2]
[349255873,1737078633490,-542.38540634,0.00027122,2]
[349255874,1737078633499,-1195.27,0.00027123,30]
[349255875,1737078633509,-1000.0,0.0002713,2]
[349255876,1737078633520,-150.0,0.0002714,2]
[349255877,1737078633530,-1000.0,0.00027145,2]
[349255878,1737078633539,-358.04377759,0.00027146,2]
[349255879,1737078633549,-150.0,0.00027151,2]
[349255880,1737078633558,-150.0,0.00027153,2]
[349255881,1737078633568,-150.43,0.00027154,2]
[349255882,1737078633577,-150.0,0.00027158,2]
[349255883,1737078633587,-150.0,0.00027161,2]
[349255884,1737078633596,-150.0,0.00027164,2]
[349255885,1737078633605,-1000.0,0.00027164,2]
[349255886,1737078633614,-150.0,0.00027166,2]
[349255887,1737078633623,-150.0,0.00027175,2]
[349255888,1737078633633,-1000.0,0.00027181,2]
[349255889,1737078633642,-10577.19937327,0.00027182,2]
[349255890,1737078633651,-150.0,0.00027182,2]
[349255891,1737078633660,-150.0,0.00027185,2]
[349255892,1737078633670,-150.0,0.00027188,2]
[349255893,1737078633679,-10577.19937327,0.00027188,2]
[349255894,1737078633688,-150.0,0.00027189,2]
[349255895,1737078633697,-150.0,0.00027189,2]
[349255896,1737078633707,-520.1595,0.00027197,2]
[349255897,1737078633716,-1308.2881,0.00027197,2]
[349255898,1737078633725,-2500.0,0.00027197,2]
[349255899,1737078633735,-150.0,0.00027197,2]
[349255900,1737078633745,-177.13958533,0.00027197,2]
[349255901,1737078633754,-3301.41581076,0.00027198,2]
[349255902,1737078633769,-24259.41841042,0.00027198,2]
[349255903,1737078633778,-235676.43487493,0.00027206,2]
[349255904,1737078633788,-11928.68328644,0.00027208,2]
[349255905,1737078633797,-522.64632571,0.00027209,2]
[349255906,1737078633806,-11928.68328644,0.00027211,2]
[349255907,1737078633816,-4218.60929359,0.00027213,2]
[349255908,1737078633825,-1000.0,0.00027213,2]
[349255909,1737078633835,-71161.04768194,0.00027214,2]
[349255910,1737078633846,-128189.80842878,0.00027214,2]
[349255911,1737078633857,-2159.2541028,0.00027214,2]
[349255912,1737078633868,-514.35113266,0.00027214,2]
[349255913,1737078636635,-150.0,0.0002712,2]
[349255914,1737078636646,-150.0,0.00027129,2]
[349255915,1737078636655,-150.0,0.0002713,2]
[349255916,1737078636665,-150.0,0.00027132,2]
[349255917,1737078636674,-150.0,0.00027144,2]
[349255918,1737078636683,-150.0,0.00027148,2]
[349255919,1737078636692,-150.0,0.00027159,2]
[349255920,1737078636702,-150.0,0.00027161,2]
[349255921,1737078636711,-150.0,0.00027164,2]
[349255922,1737078636721,-150.0,0.00027165,2]
[349255923,1737078636730,-150.0,0.0002717,2]
[349255924,1737078636740,-150.0,0.00027178,2]
[349255925,1737078636750,-150.0,0.00027189,2]
[349255926,1737078636759,-150.0,0.00027201,2]
[349255927,1737078636770,-150.0,0.00027206,2]
[349255928,1737078636780,-1344.18469,0.00027214,2]
[349255929,1737078636866,-150.0,0.00027158,2]
[349255930,1737078636876,-104.87476682,0.00027184,2]
[349255931,1737078636887,-45.12523318,0.00027184,2]
[349255932,1737078636897,-30264.37520052,0.00027214,2]
[349255933,1737078636908,-2043.41363823,0.00027214,2]
[349255934,1737078636918,-150.0,0.00027215,2]
[349255935,1737078636927,-10004.09490579,0.00027216,2]
[349256003,1737078638401,-150.0,0.00027195,2]
[349256004,1737078638411,-102.22,0.00027196,2]
[349256005,1737078638423,-47.78,0.00027196,2]
[349256006,1737078638432,-150.0,0.00027211,2]
[349256007,1737078638442,-10135.52066277,0.00027216,2]
[349256008,1737078638454,-5862.47058519,0.00027216,2]
[349256009,1737078638466,-85316.94510874,0.00027216,2]
[349256010,1737078638629,-150.0,0.00027183,2]
[349256011,1737078638639,-124357.40361244,0.00027216,2]
[349256012,1737078638649,-150.0,0.00027216,2]
[349256013,1737078638658,-11928.68328644,0.0002722,2]
[349256014,1737078638668,-11928.68328644,0.00027221,2]
[349256015,1737078638678,-1000.0,0.00027222,2]
[349256016,1737078638687,-27560.83422118,0.00027226,2]
[349256017,1737078638696,-150.0,0.00027226,2]
[349256018,1737078638706,-129433.14634423,0.0002723,2]
[349256019,1737078639004,-16131.68368021,0.0002723,2]
[349256020,1737078639017,-8897.33288894,0.0002723,2]
[349256021,1737078639032,-417.53869654,0.0002723,2]
[349256025,1737078639591,-25180.36226086,0.0002723,2]
[349256026,1737078639602,-13806.79721775,0.0002723,2]
[349256027,1737078639613,-10591.17998013,0.0002723,2]
[349256028,1737078639658,-150.0,0.00027126,2]
[349256029,1737078639668,-150.0,0.00027195,2]
[349256030,1737078639678,-150.0,0.00027196,2]
[349256031,1737078639687,-31218.39380627,0.0002723,2]
[349256032,1737078639696,-150.0,0.0002723,2]
[349256033,1737078639706,-177.13958532,0.0002723,2]
[349256034,1737078639715,-10577.19937327,0.00027231,2]
[349256035,1737078639724,-150.0,0.00027234,2]
[349256036,1737078639734,-150.0,0.00027235,2]
[349256037,1737078639743,-203154.54414402,0.00027236,2]
[349256038,1737078639755,-32521.89073091,0.00027236,2]
[349256039,1737078639764,-150.0,0.00027237,2]
[349256040,1737078639777,-11877.06369,0.00027238,2]
[349256041,1737078639788,-15683.77053118,0.00027238,2]
[349256042,1737078639797,-150.0,0.00027241,2]
[349256043,1737078639807,-150.0,0.00027243,2]
[349256044,1737078639817,-150.0,0.00027243,2]
[349256045,1737078639826,-150.0,0.00027248,2]
[349256046,1737078639836,-1000.0,0.00027252,2]
[349256047,1737078639845,-150.0,0.00027252,2]
[349256048,1737078639855,-150.0,0.00027254,2]
[349256049,1737078639865,-4218.60929359,0.00027255,2]
[349256050,1737078639874,-150.0,0.00027256,2]
[349256051,1737078639883,-1000.0,0.00027257,2]
[349256052,1737078639893,-150.0,0.00027258,2]
[349256053,1737078639902,-1000.0,0.00027259,2]
[349256054,1737078639911,-150.0,0.00027261,2]
[349256055,1737078639921,-150.0,0.00027262,2]
[349256056,1737078639931,-27560.83422118,0.00027263,2]
[349256057,1737078639941,-177.13958532,0.00027264,2]
[349256058,1737078639950,-10577.19937327,0.00027264,2]
[349256059,1737078639960,-200.0,0.00027269,2]